{"text_format":"1","workbook":"xlsx","n_sheets":2,"sheets":["сверка","итог"],"not_rendered":{"charts":0,"images":0,"macros":1,"external_links":0,"defined_names":0,"comments":0,"pivot_tables":0},"unopened":[],"bounds":{"document_bytes":16777216,"sheet_cells":100000,"rows_first":2000,"rows_last":500,"rows_between":2000,"halvings":0,"cell_chars":16384,"cell_head_chars":4096},"cells_cut":0,"cells_raw":0,"read":"whole","date_system":"1900"}

{"sheet":"сверка","index":0,"n_rows":256,"n_cols":45,"rows_kept":256,"cut":false,"hidden":false,"merged":[[0,0,0,4],[0,5,0,17],[0,18,0,30],[0,31,0,43],[0,44,1,44]]}
["команда",null,null,null,null,"тур 1",null,null,null,null,null,null,null,null,null,null,null,null,"тур 2",null,null,null,null,null,null,null,null,null,null,null,null,"тур 3",null,null,null,null,null,null,null,null,null,null,null,null,"всего"]
["№","название","категория","город","учреждение",1,2,3,4,5,6,7,8,9,10,11,12,"Σ",13,14,15,16,17,18,19,20,21,22,23,24,"Σ",25,26,27,28,29,30,31,32,33,34,35,36,"Σ"]
[{"$f":"IF(ISTEXT($B3), 1, \"\")","v":1},"Интеграл","с","Евпатория","ЕУВК Интеграл",1,null,1,null,1,1,1,1,null,1,null,null,{"$f":"IF(ISTEXT($B3), SUM(F3:Q3), \"\")","v":7},1,null,1,1,1,1,1,null,null,null,1,null,{"$f":"IF(ISTEXT($B3), SUM(S3:AD3), \"\")","v":7},1,null,1,null,null,1,null,1,null,1,null,null,{"$f":"IF(ISTEXT($B3), SUM(AF3:AQ3), \"\")","v":5},{"$f":"IF(ISTEXT($B3), R3+AE3+AR3, \"\")","v":19}]
[{"$f":"IF(ISTEXT($B4), A3+1, \"\")","v":2},"Алустон","м","Алушта","УВК ШФМЛ",1,null,1,null,null,1,1,1,null,1,null,null,6,1,null,null,null,1,1,1,null,null,null,1,null,{"$f":"IF(ISTEXT($B4), SUM(S4:AD4), \"\")","v":5},null,null,1,null,null,1,null,null,null,1,null,null,{"$f":"IF(ISTEXT($B4), SUM(AF4:AQ4), \"\")","v":3},{"$f":"IF(ISTEXT($B4), R4+AE4+AR4, \"\")","v":14}]
[{"$f":"IF(ISTEXT($B5), A4+1, \"\")","v":3},"Грэйсы","м","Симферополь","ОШ34",null,null,null,null,null,1,null,null,null,1,null,null,2,1,null,1,null,null,1,1,null,null,null,1,null,5,null,null,null,null,null,1,null,1,1,1,null,null,4,11]
[4,"ДЭМС","с","Донское","Донская ОШ",1,null,1,null,null,1,1,null,null,null,1,null,5,1,1,null,null,null,1,1,null,null,null,null,null,4,1,null,null,null,null,1,null,1,null,null,null,null,3,12]
[5,"Apple","с","Бахчисарай","УВК ШГ",1,1,1,1,1,1,1,1,null,1,null,null,9,1,null,null,null,1,1,1,null,null,null,null,1,5,null,null,1,null,null,1,null,null,1,1,null,null,4,18]
[6,"Мозг","м","Бахчисарай","УВК ШГ",1,null,1,1,null,1,null,1,null,null,null,null,5,1,null,null,null,1,1,1,null,null,null,null,1,5,null,null,null,null,null,1,null,null,null,1,null,null,2,12]
[7,"Лидер","с","Евпатория","ЕОШ16",1,null,1,1,1,1,1,1,null,1,1,null,9,1,null,null,null,1,1,1,null,null,null,null,1,5,1,null,1,null,null,null,null,null,null,1,null,1,4,18]
[8,"Достлукъ","м","Евпатория","ЕОШ18",1,null,1,null,null,1,1,null,null,1,null,null,5,1,null,null,null,1,1,null,1,null,null,null,null,4,null,null,null,null,null,1,null,null,1,1,null,null,3,12]
[9,"Ювентус","м","Евпатория","ЕОШ13",1,null,1,null,1,1,1,1,null,1,null,null,7,1,1,1,null,null,1,1,1,null,null,null,null,6,null,null,null,null,null,1,1,null,1,1,null,null,4,17]
[10,"Исключение из правил","с","Симферополь","ОШ23",null,null,1,null,null,1,1,null,null,1,null,null,4,null,null,null,null,null,1,1,null,null,null,1,1,4,null,1,null,null,null,1,null,null,1,null,null,1,4,12]
[11,"Знатоки","с","Симферополь","ОШ4",1,null,null,null,null,1,null,1,null,null,1,null,4,1,null,null,null,null,1,null,null,null,null,1,null,3,1,null,null,null,null,null,null,null,null,null,null,null,1,8]
[12,"СКИТтеры","м","Симферополь","КрЦДЮТ",1,null,1,1,null,1,1,null,1,1,null,1,8,1,null,null,null,1,1,1,1,1,1,null,1,8,null,null,1,null,null,1,1,null,null,1,1,1,6,22]
[13,"Орион","м","Укромное","Укромновская ОШ",null,null,null,null,null,1,1,null,null,null,null,null,2,1,null,null,null,null,1,1,null,null,null,null,null,3,null,null,null,null,null,null,null,null,null,null,null,null,0,5]
[14,"Интеллект","м","Бахчисарай","ОШ2",1,null,null,null,1,1,1,null,null,null,null,null,4,null,null,null,null,null,null,1,1,null,null,null,null,2,null,null,1,null,null,null,null,null,null,1,null,null,2,8]
[15,"Язь","с","Ялта","ЭУВК Школа Будущего",1,null,1,1,1,1,1,1,null,1,1,null,9,1,null,null,null,1,1,1,1,null,1,1,null,7,null,null,1,null,null,1,null,null,null,1,1,null,4,20]
[16,"Сейтлер","с","Нижнегорский р-н","РЦДЮТ",null,null,1,1,1,1,1,1,null,null,1,null,7,null,null,null,null,null,1,1,null,null,null,null,null,2,null,1,null,null,null,1,1,null,null,1,null,null,4,13]
[17,"Оптимисты","м","Симферополь","ОШ4",1,null,null,null,null,1,1,null,null,null,null,null,3,1,null,null,null,null,1,1,1,null,null,null,null,4,null,null,null,null,null,null,null,null,null,null,null,null,0,7]
[18,"Дети 90-х","с","Евпатория","сборная",1,null,1,1,1,1,1,null,null,1,1,null,8,null,null,null,null,null,1,1,1,null,null,1,null,4,null,null,null,null,null,null,null,null,null,null,null,null,0,12]
[19,"Золотой запас","с","Октябрьское","ОШ 1",1,null,null,1,null,1,1,1,null,null,null,null,5,null,null,null,null,null,1,1,null,null,null,null,null,2,1,null,1,null,null,null,null,null,null,1,null,null,3,10]
["",null,null,null,null,null,null,null,null,null,null,null,null,null,null,null,null,"",null,null,null,null,null,null,null,null,null,null,null,null,"",null,null,null,null,null,null,null,null,null,null,null,null,"",""]
["",null,null,null,null,null,null,null,null,null,null,null,null,null,null,null,null,"",null,null,null,null,null,null,null,null,null,null,null,null,"",null,null,null,null,null,null,null,null,null,null,null,null,"",""]
["",null,null,null,null,null,null,null,null,null,null,null,null,null,null,null,null,"",null,null,null,null,null,null,null,null,null,null,null,null,"",null,null,null,null,null,null,null,null,null,null,null,null,"",""]
["",null,null,null,null,null,null,null,null,null,null,null,null,null,null,null,null,"",null,null,null,null,null,null,null,null,null,null,null,null,"",null,null,null,null,null,null,null,null,null,null,null,null,"",""]
["",null,null,null,null,null,null,null,null,null,null,null,null,null,null,null,null,"",null,null,null,null,null,null,null,null,null,null,null,null,"",null,null,null,null,null,null,null,null,null,null,null,null,"",""]
["",null,null,null,null,null,null,null,null,null,null,null,null,null,null,null,null,"",null,null,null,null,null,null,null,null,null,null,null,null,"",null,null,null,null,null,null,null,null,null,null,null,null,"",""]
["",null,null,null,null,null,null,null,null,null,null,null,null,null,null,null,null,"",null,null,null,null,null,null,null,null,null,null,null,null,"",null,null,null,null,null,null,null,null,null,null,null,null,"",""]
["",null,null,null,null,null,null,null,null,null,null,null,null,null,null,null,null,"",null,null,null,null,null,null,null,null,null,null,null,null,"",null,null,null,null,null,null,null,null,null,null,null,null,"",""]
["",null,null,null,null,null,null,null,null,null,null,null,null,null,null,null,null,"",null,null,null,null,null,null,null,null,null,null,null,null,"",null,null,null,null,null,null,null,null,null,null,null,null,"",""]
["",null,null,null,null,null,null,null,null,null,null,null,null,null,null,null,null,"",null,null,null,null,null,null,null,null,null,null,null,null,"",null,null,null,null,null,null,null,null,null,null,null,null,"",""]
["",null,null,null,null,null,null,null,null,null,null,null,null,null,null,null,null,"",null,null,null,null,null,null,null,null,null,null,null,null,"",null,null,null,null,null,null,null,null,null,null,null,null,"",""]
["",null,null,null,null,null,null,null,null,null,null,null,null,null,null,null,null,"",null,null,null,null,null,null,null,null,null,null,null,null,"",null,null,null,null,null,null,null,null,null,null,null,null,"",""]
["",null,null,null,null,null,null,null,null,null,null,null,null,null,null,null,null,"",null,null,null,null,null,null,null,null,null,null,null,null,"",null,null,null,null,null,null,null,null,null,null,null,null,"",""]
["",null,null,null,null,null,null,null,null,null,null,null,null,null,null,null,null,"",null,null,null,null,null,null,null,null,null,null,null,null,"",null,null,null,null,null,null,null,null,null,null,null,null,"",""]
["",null,null,null,null,null,null,null,null,null,null,null,null,null,null,null,null,"",null,null,null,null,null,null,null,null,null,null,null,null,"",null,null,null,null,null,null,null,null,null,null,null,null,"",""]
["",null,null,null,null,null,null,null,null,null,null,null,null,null,null,null,null,"",null,null,null,null,null,null,null,null,null,null,null,null,"",null,null,null,null,null,null,null,null,null,null,null,null,"",""]
["",null,null,null,null,null,null,null,null,null,null,null,null,null,null,null,null,"",null,null,null,null,null,null,null,null,null,null,null,null,"",null,null,null,null,null,null,null,null,null,null,null,null,"",""]
["",null,null,null,null,null,null,null,null,null,null,null,null,null,null,null,null,"",null,null,null,null,null,null,null,null,null,null,null,null,"",null,null,null,null,null,null,null,null,null,null,null,null,"",""]
["",null,null,null,null,null,null,null,null,null,null,null,null,null,null,null,null,"",null,null,null,null,null,null,null,null,null,null,null,null,"",null,null,null,null,null,null,null,null,null,null,null,null,"",""]
["",null,null,null,null,null,null,null,null,null,null,null,null,null,null,null,null,"",null,null,null,null,null,null,null,null,null,null,null,null,"",null,null,null,null,null,null,null,null,null,null,null,null,"",""]
["",null,null,null,null,null,null,null,null,null,null,null,null,null,null,null,null,"",null,null,null,null,null,null,null,null,null,null,null,null,"",null,null,null,null,null,null,null,null,null,null,null,null,"",""]
["",null,null,null,null,null,null,null,null,null,null,null,null,null,null,null,null,"",null,null,null,null,null,null,null,null,null,null,null,null,"",null,null,null,null,null,null,null,null,null,null,null,null,"",""]
["",null,null,null,null,null,null,null,null,null,null,null,null,null,null,null,null,"",null,null,null,null,null,null,null,null,null,null,null,null,"",null,null,null,null,null,null,null,null,null,null,null,null,"",""]
["",null,null,null,null,null,null,null,null,null,null,null,null,null,null,null,null,"",null,null,null,null,null,null,null,null,null,null,null,null,"",null,null,null,null,null,null,null,null,null,null,null,null,"",""]
["",null,null,null,null,null,null,null,null,null,null,null,null,null,null,null,null,"",null,null,null,null,null,null,null,null,null,null,null,null,"",null,null,null,null,null,null,null,null,null,null,null,null,"",""]
["",null,null,null,null,null,null,null,null,null,null,null,null,null,null,null,null,"",null,null,null,null,null,null,null,null,null,null,null,null,"",null,null,null,null,null,null,null,null,null,null,null,null,"",""]
["",null,null,null,null,null,null,null,null,null,null,null,null,null,null,null,null,"",null,null,null,null,null,null,null,null,null,null,null,null,"",null,null,null,null,null,null,null,null,null,null,null,null,"",""]
["",null,null,null,null,null,null,null,null,null,null,null,null,null,null,null,null,"",null,null,null,null,null,null,null,null,null,null,null,null,"",null,null,null,null,null,null,null,null,null,null,null,null,"",""]
["",null,null,null,null,null,null,null,null,null,null,null,null,null,null,null,null,"",null,null,null,null,null,null,null,null,null,null,null,null,"",null,null,null,null,null,null,null,null,null,null,null,null,"",""]
["",null,null,null,null,null,null,null,null,null,null,null,null,null,null,null,null,"",null,null,null,null,null,null,null,null,null,null,null,null,"",null,null,null,null,null,null,null,null,null,null,null,null,"",""]
["",null,null,null,null,null,null,null,null,null,null,null,null,null,null,null,null,"",null,null,null,null,null,null,null,null,null,null,null,null,"",null,null,null,null,null,null,null,null,null,null,null,null,"",""]
["",null,null,null,null,null,null,null,null,null,null,null,null,null,null,null,null,"",null,null,null,null,null,null,null,null,null,null,null,null,"",null,null,null,null,null,null,null,null,null,null,null,null,"",""]
["",null,null,null,null,null,null,null,null,null,null,null,null,null,null,null,null,"",null,null,null,null,null,null,null,null,null,null,null,null,"",null,null,null,null,null,null,null,null,null,null,null,null,"",""]
["",null,null,null,null,null,null,null,null,null,null,null,null,null,null,null,null,"",null,null,null,null,null,null,null,null,null,null,null,null,"",null,null,null,null,null,null,null,null,null,null,null,null,"",""]
["",null,null,null,null,null,null,null,null,null,null,null,null,null,null,null,null,"",null,null,null,null,null,null,null,null,null,null,null,null,"",null,null,null,null,null,null,null,null,null,null,null,null,"",""]
["",null,null,null,null,null,null,null,null,null,null,null,null,null,null,null,null,"",null,null,null,null,null,null,null,null,null,null,null,null,"",null,null,null,null,null,null,null,null,null,null,null,null,"",""]
["",null,null,null,null,null,null,null,null,null,null,null,null,null,null,null,null,"",null,null,null,null,null,null,null,null,null,null,null,null,"",null,null,null,null,null,null,null,null,null,null,null,null,"",""]
["",null,null,null,null,null,null,null,null,null,null,null,null,null,null,null,null,"",null,null,null,null,null,null,null,null,null,null,null,null,"",null,null,null,null,null,null,null,null,null,null,null,null,"",""]
["",null,null,null,null,null,null,null,null,null,null,null,null,null,null,null,null,"",null,null,null,null,null,null,null,null,null,null,null,null,"",null,null,null,null,null,null,null,null,null,null,null,null,"",""]
["",null,null,null,null,null,null,null,null,null,null,null,null,null,null,null,null,"",null,null,null,null,null,null,null,null,null,null,null,null,"",null,null,null,null,null,null,null,null,null,null,null,null,"",""]
["",null,null,null,null,null,null,null,null,null,null,null,null,null,null,null,null,"",null,null,null,null,null,null,null,null,null,null,null,null,"",null,null,null,null,null,null,null,null,null,null,null,null,"",""]
["",null,null,null,null,null,null,null,null,null,null,null,null,null,null,null,null,"",null,null,null,null,null,null,null,null,null,null,null,null,"",null,null,null,null,null,null,null,null,null,null,null,null,"",""]
["",null,null,null,null,null,null,null,null,null,null,null,null,null,null,null,null,"",null,null,null,null,null,null,null,null,null,null,null,null,"",null,null,null,null,null,null,null,null,null,null,null,null,"",""]
["",null,null,null,null,null,null,null,null,null,null,null,null,null,null,null,null,"",null,null,null,null,null,null,null,null,null,null,null,null,"",null,null,null,null,null,null,null,null,null,null,null,null,"",""]
["",null,null,null,null,null,null,null,null,null,null,null,null,null,null,null,null,"",null,null,null,null,null,null,null,null,null,null,null,null,"",null,null,null,null,null,null,null,null,null,null,null,null,"",""]
["",null,null,null,null,null,null,null,null,null,null,null,null,null,null,null,null,{"$f":"IF(ISTEXT($B67), SUM(F67:Q67), \"\")","v":""},null,null,null,null,null,null,null,null,null,null,null,null,"",null,null,null,null,null,null,null,null,null,null,null,null,"",""]
["",null,null,null,null,null,null,null,null,null,null,null,null,null,null,null,null,"",null,null,null,null,null,null,null,null,null,null,null,null,{"$f":"IF(ISTEXT($B68), SUM(S68:AD68), \"\")","v":""},null,null,null,null,null,null,null,null,null,null,null,null,{"$f":"IF(ISTEXT($B68), SUM(AF68:AQ68), \"\")","v":""},{"$f":"IF(ISTEXT($B68), R68+AE68+AR68, \"\")","v":""}]
[{"$f":"IF(ISTEXT($B69), A68+1, \"\")","v":""},null,null,null,null,null,null,null,null,null,null,null,null,null,null,null,null,"",null,null,null,null,null,null,null,null,null,null,null,null,"",null,null,null,null,null,null,null,null,null,null,null,null,"",""]
["",null,null,null,null,null,null,null,null,null,null,null,null,null,null,null,null,"",null,null,null,null,null,null,null,null,null,null,null,null,"",null,null,null,null,null,null,null,null,null,null,null,null,"",""]
["",null,null,null,null,null,null,null,null,null,null,null,null,null,null,null,null,"",null,null,null,null,null,null,null,null,null,null,null,null,"",null,null,null,null,null,null,null,null,null,null,null,null,"",""]
["",null,null,null,null,null,null,null,null,null,null,null,null,null,null,null,null,"",null,null,null,null,null,null,null,null,null,null,null,null,"",null,null,null,null,null,null,null,null,null,null,null,null,"",""]
["",null,null,null,null,null,null,null,null,null,null,null,null,null,null,null,null,"",null,null,null,null,null,null,null,null,null,null,null,null,"",null,null,null,null,null,null,null,null,null,null,null,null,"",""]
["",null,null,null,null,null,null,null,null,null,null,null,null,null,null,null,null,"",null,null,null,null,null,null,null,null,null,null,null,null,"",null,null,null,null,null,null,null,null,null,null,null,null,"",""]
["",null,null,null,null,null,null,null,null,null,null,null,null,null,null,null,null,"",null,null,null,null,null,null,null,null,null,null,null,null,"",null,null,null,null,null,null,null,null,null,null,null,null,"",""]
["",null,null,null,null,null,null,null,null,null,null,null,null,null,null,null,null,"",null,null,null,null,null,null,null,null,null,null,null,null,"",null,null,null,null,null,null,null,null,null,null,null,null,"",""]
["",null,null,null,null,null,null,null,null,null,null,null,null,null,null,null,null,"",null,null,null,null,null,null,null,null,null,null,null,null,"",null,null,null,null,null,null,null,null,null,null,null,null,"",""]
["",null,null,null,null,null,null,null,null,null,null,null,null,null,null,null,null,"",null,null,null,null,null,null,null,null,null,null,null,null,"",null,null,null,null,null,null,null,null,null,null,null,null,"",""]
["",null,null,null,null,null,null,null,null,null,null,null,null,null,null,null,null,"",null,null,null,null,null,null,null,null,null,null,null,null,"",null,null,null,null,null,null,null,null,null,null,null,null,"",""]
["",null,null,null,null,null,null,null,null,null,null,null,null,null,null,null,null,"",null,null,null,null,null,null,null,null,null,null,null,null,"",null,null,null,null,null,null,null,null,null,null,null,null,"",""]
["",null,null,null,null,null,null,null,null,null,null,null,null,null,null,null,null,"",null,null,null,null,null,null,null,null,null,null,null,null,"",null,null,null,null,null,null,null,null,null,null,null,null,"",""]
["",null,null,null,null,null,null,null,null,null,null,null,null,null,null,null,null,"",null,null,null,null,null,null,null,null,null,null,null,null,"",null,null,null,null,null,null,null,null,null,null,null,null,"",""]
["",null,null,null,null,null,null,null,null,null,null,null,null,null,null,null,null,"",null,null,null,null,null,null,null,null,null,null,null,null,"",null,null,null,null,null,null,null,null,null,null,null,null,"",""]
["",null,null,null,null,null,null,null,null,null,null,null,null,null,null,null,null,"",null,null,null,null,null,null,null,null,null,null,null,null,"",null,null,null,null,null,null,null,null,null,null,null,null,"",""]
["",null,null,null,null,null,null,null,null,null,null,null,null,null,null,null,null,"",null,null,null,null,null,null,null,null,null,null,null,null,"",null,null,null,null,null,null,null,null,null,null,null,null,"",""]
["",null,null,null,null,null,null,null,null,null,null,null,null,null,null,null,null,"",null,null,null,null,null,null,null,null,null,null,null,null,"",null,null,null,null,null,null,null,null,null,null,null,null,"",""]
["",null,null,null,null,null,null,null,null,null,null,null,null,null,null,null,null,"",null,null,null,null,null,null,null,null,null,null,null,null,"",null,null,null,null,null,null,null,null,null,null,null,null,"",""]
["",null,null,null,null,null,null,null,null,null,null,null,null,null,null,null,null,"",null,null,null,null,null,null,null,null,null,null,null,null,"",null,null,null,null,null,null,null,null,null,null,null,null,"",""]
["",null,null,null,null,null,null,null,null,null,null,null,null,null,null,null,null,"",null,null,null,null,null,null,null,null,null,null,null,null,"",null,null,null,null,null,null,null,null,null,null,null,null,"",""]
["",null,null,null,null,null,null,null,null,null,null,null,null,null,null,null,null,"",null,null,null,null,null,null,null,null,null,null,null,null,"",null,null,null,null,null,null,null,null,null,null,null,null,"",""]
["",null,null,null,null,null,null,null,null,null,null,null,null,null,null,null,null,"",null,null,null,null,null,null,null,null,null,null,null,null,"",null,null,null,null,null,null,null,null,null,null,null,null,"",""]
["",null,null,null,null,null,null,null,null,null,null,null,null,null,null,null,null,"",null,null,null,null,null,null,null,null,null,null,null,null,"",null,null,null,null,null,null,null,null,null,null,null,null,"",""]
["",null,null,null,null,null,null,null,null,null,null,null,null,null,null,null,null,"",null,null,null,null,null,null,null,null,null,null,null,null,"",null,null,null,null,null,null,null,null,null,null,null,null,"",""]
["",null,null,null,null,null,null,null,null,null,null,null,null,null,null,null,null,"",null,null,null,null,null,null,null,null,null,null,null,null,"",null,null,null,null,null,null,null,null,null,null,null,null,"",""]
["",null,null,null,null,null,null,null,null,null,null,null,null,null,null,null,null,"",null,null,null,null,null,null,null,null,null,null,null,null,"",null,null,null,null,null,null,null,null,null,null,null,null,"",""]
["",null,null,null,null,null,null,null,null,null,null,null,null,null,null,null,null,"",null,null,null,null,null,null,null,null,null,null,null,null,"",null,null,null,null,null,null,null,null,null,null,null,null,"",""]
["",null,null,null,null,null,null,null,null,null,null,null,null,null,null,null,null,"",null,null,null,null,null,null,null,null,null,null,null,null,"",null,null,null,null,null,null,null,null,null,null,null,null,"",""]
["",null,null,null,null,null,null,null,null,null,null,null,null,null,null,null,null,"",null,null,null,null,null,null,null,null,null,null,null,null,"",null,null,null,null,null,null,null,null,null,null,null,null,"",""]
["",null,null,null,null,null,null,null,null,null,null,null,null,null,null,null,null,"",null,null,null,null,null,null,null,null,null,null,null,null,"",null,null,null,null,null,null,null,null,null,null,null,null,"",""]
["",null,null,null,null,null,null,null,null,null,null,null,null,null,null,null,null,"",null,null,null,null,null,null,null,null,null,null,null,null,"",null,null,null,null,null,null,null,null,null,null,null,null,"",""]
["",null,null,null,null,null,null,null,null,null,null,null,null,null,null,null,null,"",null,null,null,null,null,null,null,null,null,null,null,null,"",null,null,null,null,null,null,null,null,null,null,null,null,"",""]
["",null,null,null,null,null,null,null,null,null,null,null,null,null,null,null,null,"",null,null,null,null,null,null,null,null,null,null,null,null,"",null,null,null,null,null,null,null,null,null,null,null,null,"",""]
["",null,null,null,null,null,null,null,null,null,null,null,null,null,null,null,null,"",null,null,null,null,null,null,null,null,null,null,null,null,"",null,null,null,null,null,null,null,null,null,null,null,null,"",""]
["",null,null,null,null,null,null,null,null,null,null,null,null,null,null,null,null,"",null,null,null,null,null,null,null,null,null,null,null,null,"",null,null,null,null,null,null,null,null,null,null,null,null,"",""]
["",null,null,null,null,null,null,null,null,null,null,null,null,null,null,null,null,"",null,null,null,null,null,null,null,null,null,null,null,null,"",null,null,null,null,null,null,null,null,null,null,null,null,"",""]
["",null,null,null,null,null,null,null,null,null,null,null,null,null,null,null,null,"",null,null,null,null,null,null,null,null,null,null,null,null,"",null,null,null,null,null,null,null,null,null,null,null,null,"",""]
["",null,null,null,null,null,null,null,null,null,null,null,null,null,null,null,null,"",null,null,null,null,null,null,null,null,null,null,null,null,"",null,null,null,null,null,null,null,null,null,null,null,null,"",""]
["",null,null,null,null,null,null,null,null,null,null,null,null,null,null,null,null,"",null,null,null,null,null,null,null,null,null,null,null,null,"",null,null,null,null,null,null,null,null,null,null,null,null,"",""]
["",null,null,null,null,null,null,null,null,null,null,null,null,null,null,null,null,"",null,null,null,null,null,null,null,null,null,null,null,null,"",null,null,null,null,null,null,null,null,null,null,null,null,"",""]
["",null,null,null,null,null,null,null,null,null,null,null,null,null,null,null,null,"",null,null,null,null,null,null,null,null,null,null,null,null,"",null,null,null,null,null,null,null,null,null,null,null,null,"",""]
["",null,null,null,null,null,null,null,null,null,null,null,null,null,null,null,null,"",null,null,null,null,null,null,null,null,null,null,null,null,"",null,null,null,null,null,null,null,null,null,null,null,null,"",""]
["",null,null,null,null,null,null,null,null,null,null,null,null,null,null,null,null,"",null,null,null,null,null,null,null,null,null,null,null,null,"",null,null,null,null,null,null,null,null,null,null,null,null,"",""]
["",null,null,null,null,null,null,null,null,null,null,null,null,null,null,null,null,"",null,null,null,null,null,null,null,null,null,null,null,null,"",null,null,null,null,null,null,null,null,null,null,null,null,"",""]
["",null,null,null,null,null,null,null,null,null,null,null,null,null,null,null,null,"",null,null,null,null,null,null,null,null,null,null,null,null,"",null,null,null,null,null,null,null,null,null,null,null,null,"",""]
["",null,null,null,null,null,null,null,null,null,null,null,null,null,null,null,null,"",null,null,null,null,null,null,null,null,null,null,null,null,"",null,null,null,null,null,null,null,null,null,null,null,null,"",""]
["",null,null,null,null,null,null,null,null,null,null,null,null,null,null,null,null,"",null,null,null,null,null,null,null,null,null,null,null,null,"",null,null,null,null,null,null,null,null,null,null,null,null,"",""]
["",null,null,null,null,null,null,null,null,null,null,null,null,null,null,null,null,"",null,null,null,null,null,null,null,null,null,null,null,null,"",null,null,null,null,null,null,null,null,null,null,null,null,"",""]
["",null,null,null,null,null,null,null,null,null,null,null,null,null,null,null,null,"",null,null,null,null,null,null,null,null,null,null,null,null,"",null,null,null,null,null,null,null,null,null,null,null,null,"",""]
["",null,null,null,null,null,null,null,null,null,null,null,null,null,null,null,null,"",null,null,null,null,null,null,null,null,null,null,null,null,"",null,null,null,null,null,null,null,null,null,null,null,null,"",""]
["",null,null,null,null,null,null,null,null,null,null,null,null,null,null,null,null,"",null,null,null,null,null,null,null,null,null,null,null,null,"",null,null,null,null,null,null,null,null,null,null,null,null,"",""]
["",null,null,null,null,null,null,null,null,null,null,null,null,null,null,null,null,"",null,null,null,null,null,null,null,null,null,null,null,null,"",null,null,null,null,null,null,null,null,null,null,null,null,"",""]
["",null,null,null,null,null,null,null,null,null,null,null,null,null,null,null,null,"",null,null,null,null,null,null,null,null,null,null,null,null,"",null,null,null,null,null,null,null,null,null,null,null,null,"",""]
["",null,null,null,null,null,null,null,null,null,null,null,null,null,null,null,null,"",null,null,null,null,null,null,null,null,null,null,null,null,"",null,null,null,null,null,null,null,null,null,null,null,null,"",""]
["",null,null,null,null,null,null,null,null,null,null,null,null,null,null,null,null,"",null,null,null,null,null,null,null,null,null,null,null,null,"",null,null,null,null,null,null,null,null,null,null,null,null,"",""]
["",null,null,null,null,null,null,null,null,null,null,null,null,null,null,null,null,"",null,null,null,null,null,null,null,null,null,null,null,null,"",null,null,null,null,null,null,null,null,null,null,null,null,"",""]
["",null,null,null,null,null,null,null,null,null,null,null,null,null,null,null,null,"",null,null,null,null,null,null,null,null,null,null,null,null,"",null,null,null,null,null,null,null,null,null,null,null,null,"",""]
["",null,null,null,null,null,null,null,null,null,null,null,null,null,null,null,null,"",null,null,null,null,null,null,null,null,null,null,null,null,"",null,null,null,null,null,null,null,null,null,null,null,null,"",""]
["",null,null,null,null,null,null,null,null,null,null,null,null,null,null,null,null,"",null,null,null,null,null,null,null,null,null,null,null,null,"",null,null,null,null,null,null,null,null,null,null,null,null,"",""]
["",null,null,null,null,null,null,null,null,null,null,null,null,null,null,null,null,"",null,null,null,null,null,null,null,null,null,null,null,null,"",null,null,null,null,null,null,null,null,null,null,null,null,"",""]
["",null,null,null,null,null,null,null,null,null,null,null,null,null,null,null,null,"",null,null,null,null,null,null,null,null,null,null,null,null,"",null,null,null,null,null,null,null,null,null,null,null,null,"",""]
["",null,null,null,null,null,null,null,null,null,null,null,null,null,null,null,null,{"$f":"IF(ISTEXT($B131), SUM(F131:Q131), \"\")","v":""},null,null,null,null,null,null,null,null,null,null,null,null,"",null,null,null,null,null,null,null,null,null,null,null,null,"",""]
["",null,null,null,null,null,null,null,null,null,null,null,null,null,null,null,null,"",null,null,null,null,null,null,null,null,null,null,null,null,{"$f":"IF(ISTEXT($B132), SUM(S132:AD132), \"\")","v":""},null,null,null,null,null,null,null,null,null,null,null,null,{"$f":"IF(ISTEXT($B132), SUM(AF132:AQ132), \"\")","v":""},{"$f":"IF(ISTEXT($B132), R132+AE132+AR132, \"\")","v":""}]
[{"$f":"IF(ISTEXT($B133), A132+1, \"\")","v":""},null,null,null,null,null,null,null,null,null,null,null,null,null,null,null,null,"",null,null,null,null,null,null,null,null,null,null,null,null,"",null,null,null,null,null,null,null,null,null,null,null,null,"",""]
["",null,null,null,null,null,null,null,null,null,null,null,null,null,null,null,null,"",null,null,null,null,null,null,null,null,null,null,null,null,"",null,null,null,null,null,null,null,null,null,null,null,null,"",""]
["",null,null,null,null,null,null,null,null,null,null,null,null,null,null,null,null,"",null,null,null,null,null,null,null,null,null,null,null,null,"",null,null,null,null,null,null,null,null,null,null,null,null,"",""]
["",null,null,null,null,null,null,null,null,null,null,null,null,null,null,null,null,"",null,null,null,null,null,null,null,null,null,null,null,null,"",null,null,null,null,null,null,null,null,null,null,null,null,"",""]
["",null,null,null,null,null,null,null,null,null,null,null,null,null,null,null,null,"",null,null,null,null,null,null,null,null,null,null,null,null,"",null,null,null,null,null,null,null,null,null,null,null,null,"",""]
["",null,null,null,null,null,null,null,null,null,null,null,null,null,null,null,null,"",null,null,null,null,null,null,null,null,null,null,null,null,"",null,null,null,null,null,null,null,null,null,null,null,null,"",""]
["",null,null,null,null,null,null,null,null,null,null,null,null,null,null,null,null,"",null,null,null,null,null,null,null,null,null,null,null,null,"",null,null,null,null,null,null,null,null,null,null,null,null,"",""]
["",null,null,null,null,null,null,null,null,null,null,null,null,null,null,null,null,"",null,null,null,null,null,null,null,null,null,null,null,null,"",null,null,null,null,null,null,null,null,null,null,null,null,"",""]
["",null,null,null,null,null,null,null,null,null,null,null,null,null,null,null,null,"",null,null,null,null,null,null,null,null,null,null,null,null,"",null,null,null,null,null,null,null,null,null,null,null,null,"",""]
["",null,null,null,null,null,null,null,null,null,null,null,null,null,null,null,null,"",null,null,null,null,null,null,null,null,null,null,null,null,"",null,null,null,null,null,null,null,null,null,null,null,null,"",""]
["",null,null,null,null,null,null,null,null,null,null,null,null,null,null,null,null,"",null,null,null,null,null,null,null,null,null,null,null,null,"",null,null,null,null,null,null,null,null,null,null,null,null,"",""]
["",null,null,null,null,null,null,null,null,null,null,null,null,null,null,null,null,"",null,null,null,null,null,null,null,null,null,null,null,null,"",null,null,null,null,null,null,null,null,null,null,null,null,"",""]
["",null,null,null,null,null,null,null,null,null,null,null,null,null,null,null,null,"",null,null,null,null,null,null,null,null,null,null,null,null,"",null,null,null,null,null,null,null,null,null,null,null,null,"",""]
["",null,null,null,null,null,null,null,null,null,null,null,null,null,null,null,null,"",null,null,null,null,null,null,null,null,null,null,null,null,"",null,null,null,null,null,null,null,null,null,null,null,null,"",""]
["",null,null,null,null,null,null,null,null,null,null,null,null,null,null,null,null,"",null,null,null,null,null,null,null,null,null,null,null,null,"",null,null,null,null,null,null,null,null,null,null,null,null,"",""]
["",null,null,null,null,null,null,null,null,null,null,null,null,null,null,null,null,"",null,null,null,null,null,null,null,null,null,null,null,null,"",null,null,null,null,null,null,null,null,null,null,null,null,"",""]
["",null,null,null,null,null,null,null,null,null,null,null,null,null,null,null,null,"",null,null,null,null,null,null,null,null,null,null,null,null,"",null,null,null,null,null,null,null,null,null,null,null,null,"",""]
["",null,null,null,null,null,null,null,null,null,null,null,null,null,null,null,null,"",null,null,null,null,null,null,null,null,null,null,null,null,"",null,null,null,null,null,null,null,null,null,null,null,null,"",""]
["",null,null,null,null,null,null,null,null,null,null,null,null,null,null,null,null,"",null,null,null,null,null,null,null,null,null,null,null,null,"",null,null,null,null,null,null,null,null,null,null,null,null,"",""]
["",null,null,null,null,null,null,null,null,null,null,null,null,null,null,null,null,"",null,null,null,null,null,null,null,null,null,null,null,null,"",null,null,null,null,null,null,null,null,null,null,null,null,"",""]
["",null,null,null,null,null,null,null,null,null,null,null,null,null,null,null,null,"",null,null,null,null,null,null,null,null,null,null,null,null,"",null,null,null,null,null,null,null,null,null,null,null,null,"",""]
["",null,null,null,null,null,null,null,null,null,null,null,null,null,null,null,null,"",null,null,null,null,null,null,null,null,null,null,null,null,"",null,null,null,null,null,null,null,null,null,null,null,null,"",""]
["",null,null,null,null,null,null,null,null,null,null,null,null,null,null,null,null,"",null,null,null,null,null,null,null,null,null,null,null,null,"",null,null,null,null,null,null,null,null,null,null,null,null,"",""]
["",null,null,null,null,null,null,null,null,null,null,null,null,null,null,null,null,"",null,null,null,null,null,null,null,null,null,null,null,null,"",null,null,null,null,null,null,null,null,null,null,null,null,"",""]
["",null,null,null,null,null,null,null,null,null,null,null,null,null,null,null,null,"",null,null,null,null,null,null,null,null,null,null,null,null,"",null,null,null,null,null,null,null,null,null,null,null,null,"",""]
["",null,null,null,null,null,null,null,null,null,null,null,null,null,null,null,null,"",null,null,null,null,null,null,null,null,null,null,null,null,"",null,null,null,null,null,null,null,null,null,null,null,null,"",""]
["",null,null,null,null,null,null,null,null,null,null,null,null,null,null,null,null,"",null,null,null,null,null,null,null,null,null,null,null,null,"",null,null,null,null,null,null,null,null,null,null,null,null,"",""]
["",null,null,null,null,null,null,null,null,null,null,null,null,null,null,null,null,"",null,null,null,null,null,null,null,null,null,null,null,null,"",null,null,null,null,null,null,null,null,null,null,null,null,"",""]
["",null,null,null,null,null,null,null,null,null,null,null,null,null,null,null,null,"",null,null,null,null,null,null,null,null,null,null,null,null,"",null,null,null,null,null,null,null,null,null,null,null,null,"",""]
["",null,null,null,null,null,null,null,null,null,null,null,null,null,null,null,null,"",null,null,null,null,null,null,null,null,null,null,null,null,"",null,null,null,null,null,null,null,null,null,null,null,null,"",""]
["",null,null,null,null,null,null,null,null,null,null,null,null,null,null,null,null,"",null,null,null,null,null,null,null,null,null,null,null,null,"",null,null,null,null,null,null,null,null,null,null,null,null,"",""]
["",null,null,null,null,null,null,null,null,null,null,null,null,null,null,null,null,"",null,null,null,null,null,null,null,null,null,null,null,null,"",null,null,null,null,null,null,null,null,null,null,null,null,"",""]
["",null,null,null,null,null,null,null,null,null,null,null,null,null,null,null,null,"",null,null,null,null,null,null,null,null,null,null,null,null,"",null,null,null,null,null,null,null,null,null,null,null,null,"",""]
["",null,null,null,null,null,null,null,null,null,null,null,null,null,null,null,null,"",null,null,null,null,null,null,null,null,null,null,null,null,"",null,null,null,null,null,null,null,null,null,null,null,null,"",""]
["",null,null,null,null,null,null,null,null,null,null,null,null,null,null,null,null,"",null,null,null,null,null,null,null,null,null,null,null,null,"",null,null,null,null,null,null,null,null,null,null,null,null,"",""]
["",null,null,null,null,null,null,null,null,null,null,null,null,null,null,null,null,"",null,null,null,null,null,null,null,null,null,null,null,null,"",null,null,null,null,null,null,null,null,null,null,null,null,"",""]
["",null,null,null,null,null,null,null,null,null,null,null,null,null,null,null,null,"",null,null,null,null,null,null,null,null,null,null,null,null,"",null,null,null,null,null,null,null,null,null,null,null,null,"",""]
["",null,null,null,null,null,null,null,null,null,null,null,null,null,null,null,null,"",null,null,null,null,null,null,null,null,null,null,null,null,"",null,null,null,null,null,null,null,null,null,null,null,null,"",""]
["",null,null,null,null,null,null,null,null,null,null,null,null,null,null,null,null,"",null,null,null,null,null,null,null,null,null,null,null,null,"",null,null,null,null,null,null,null,null,null,null,null,null,"",""]
["",null,null,null,null,null,null,null,null,null,null,null,null,null,null,null,null,"",null,null,null,null,null,null,null,null,null,null,null,null,"",null,null,null,null,null,null,null,null,null,null,null,null,"",""]
["",null,null,null,null,null,null,null,null,null,null,null,null,null,null,null,null,"",null,null,null,null,null,null,null,null,null,null,null,null,"",null,null,null,null,null,null,null,null,null,null,null,null,"",""]
["",null,null,null,null,null,null,null,null,null,null,null,null,null,null,null,null,"",null,null,null,null,null,null,null,null,null,null,null,null,"",null,null,null,null,null,null,null,null,null,null,null,null,"",""]
["",null,null,null,null,null,null,null,null,null,null,null,null,null,null,null,null,"",null,null,null,null,null,null,null,null,null,null,null,null,"",null,null,null,null,null,null,null,null,null,null,null,null,"",""]
["",null,null,null,null,null,null,null,null,null,null,null,null,null,null,null,null,"",null,null,null,null,null,null,null,null,null,null,null,null,"",null,null,null,null,null,null,null,null,null,null,null,null,"",""]
["",null,null,null,null,null,null,null,null,null,null,null,null,null,null,null,null,"",null,null,null,null,null,null,null,null,null,null,null,null,"",null,null,null,null,null,null,null,null,null,null,null,null,"",""]
["",null,null,null,null,null,null,null,null,null,null,null,null,null,null,null,null,"",null,null,null,null,null,null,null,null,null,null,null,null,"",null,null,null,null,null,null,null,null,null,null,null,null,"",""]
["",null,null,null,null,null,null,null,null,null,null,null,null,null,null,null,null,"",null,null,null,null,null,null,null,null,null,null,null,null,"",null,null,null,null,null,null,null,null,null,null,null,null,"",""]
["",null,null,null,null,null,null,null,null,null,null,null,null,null,null,null,null,"",null,null,null,null,null,null,null,null,null,null,null,null,"",null,null,null,null,null,null,null,null,null,null,null,null,"",""]
["",null,null,null,null,null,null,null,null,null,null,null,null,null,null,null,null,"",null,null,null,null,null,null,null,null,null,null,null,null,"",null,null,null,null,null,null,null,null,null,null,null,null,"",""]
["",null,null,null,null,null,null,null,null,null,null,null,null,null,null,null,null,"",null,null,null,null,null,null,null,null,null,null,null,null,"",null,null,null,null,null,null,null,null,null,null,null,null,"",""]
["",null,null,null,null,null,null,null,null,null,null,null,null,null,null,null,null,"",null,null,null,null,null,null,null,null,null,null,null,null,"",null,null,null,null,null,null,null,null,null,null,null,null,"",""]
["",null,null,null,null,null,null,null,null,null,null,null,null,null,null,null,null,"",null,null,null,null,null,null,null,null,null,null,null,null,"",null,null,null,null,null,null,null,null,null,null,null,null,"",""]
["",null,null,null,null,null,null,null,null,null,null,null,null,null,null,null,null,"",null,null,null,null,null,null,null,null,null,null,null,null,"",null,null,null,null,null,null,null,null,null,null,null,null,"",""]
["",null,null,null,null,null,null,null,null,null,null,null,null,null,null,null,null,"",null,null,null,null,null,null,null,null,null,null,null,null,"",null,null,null,null,null,null,null,null,null,null,null,null,"",""]
["",null,null,null,null,null,null,null,null,null,null,null,null,null,null,null,null,"",null,null,null,null,null,null,null,null,null,null,null,null,"",null,null,null,null,null,null,null,null,null,null,null,null,"",""]
["",null,null,null,null,null,null,null,null,null,null,null,null,null,null,null,null,"",null,null,null,null,null,null,null,null,null,null,null,null,"",null,null,null,null,null,null,null,null,null,null,null,null,"",""]
["",null,null,null,null,null,null,null,null,null,null,null,null,null,null,null,null,"",null,null,null,null,null,null,null,null,null,null,null,null,"",null,null,null,null,null,null,null,null,null,null,null,null,"",""]
["",null,null,null,null,null,null,null,null,null,null,null,null,null,null,null,null,"",null,null,null,null,null,null,null,null,null,null,null,null,"",null,null,null,null,null,null,null,null,null,null,null,null,"",""]
["",null,null,null,null,null,null,null,null,null,null,null,null,null,null,null,null,"",null,null,null,null,null,null,null,null,null,null,null,null,"",null,null,null,null,null,null,null,null,null,null,null,null,"",""]
["",null,null,null,null,null,null,null,null,null,null,null,null,null,null,null,null,"",null,null,null,null,null,null,null,null,null,null,null,null,"",null,null,null,null,null,null,null,null,null,null,null,null,"",""]
["",null,null,null,null,null,null,null,null,null,null,null,null,null,null,null,null,"",null,null,null,null,null,null,null,null,null,null,null,null,"",null,null,null,null,null,null,null,null,null,null,null,null,"",""]
["",null,null,null,null,null,null,null,null,null,null,null,null,null,null,null,null,"",null,null,null,null,null,null,null,null,null,null,null,null,"",null,null,null,null,null,null,null,null,null,null,null,null,"",""]
["",null,null,null,null,null,null,null,null,null,null,null,null,null,null,null,null,{"$f":"IF(ISTEXT($B195), SUM(F195:Q195), \"\")","v":""},null,null,null,null,null,null,null,null,null,null,null,null,"",null,null,null,null,null,null,null,null,null,null,null,null,"",""]
["",null,null,null,null,null,null,null,null,null,null,null,null,null,null,null,null,"",null,null,null,null,null,null,null,null,null,null,null,null,{"$f":"IF(ISTEXT($B196), SUM(S196:AD196), \"\")","v":""},null,null,null,null,null,null,null,null,null,null,null,null,{"$f":"IF(ISTEXT($B196), SUM(AF196:AQ196), \"\")","v":""},{"$f":"IF(ISTEXT($B196), R196+AE196+AR196, \"\")","v":""}]
[{"$f":"IF(ISTEXT($B197), A196+1, \"\")","v":""},null,null,null,null,null,null,null,null,null,null,null,null,null,null,null,null,"",null,null,null,null,null,null,null,null,null,null,null,null,"",null,null,null,null,null,null,null,null,null,null,null,null,"",""]
["",null,null,null,null,null,null,null,null,null,null,null,null,null,null,null,null,"",null,null,null,null,null,null,null,null,null,null,null,null,"",null,null,null,null,null,null,null,null,null,null,null,null,"",""]
["",null,null,null,null,null,null,null,null,null,null,null,null,null,null,null,null,"",null,null,null,null,null,null,null,null,null,null,null,null,"",null,null,null,null,null,null,null,null,null,null,null,null,"",""]
["",null,null,null,null,null,null,null,null,null,null,null,null,null,null,null,null,"",null,null,null,null,null,null,null,null,null,null,null,null,"",null,null,null,null,null,null,null,null,null,null,null,null,"",""]
["",null,null,null,null,null,null,null,null,null,null,null,null,null,null,null,null,"",null,null,null,null,null,null,null,null,null,null,null,null,"",null,null,null,null,null,null,null,null,null,null,null,null,"",""]
["",null,null,null,null,null,null,null,null,null,null,null,null,null,null,null,null,"",null,null,null,null,null,null,null,null,null,null,null,null,"",null,null,null,null,null,null,null,null,null,null,null,null,"",""]
["",null,null,null,null,null,null,null,null,null,null,null,null,null,null,null,null,"",null,null,null,null,null,null,null,null,null,null,null,null,"",null,null,null,null,null,null,null,null,null,null,null,null,"",""]
["",null,null,null,null,null,null,null,null,null,null,null,null,null,null,null,null,"",null,null,null,null,null,null,null,null,null,null,null,null,"",null,null,null,null,null,null,null,null,null,null,null,null,"",""]
["",null,null,null,null,null,null,null,null,null,null,null,null,null,null,null,null,"",null,null,null,null,null,null,null,null,null,null,null,null,"",null,null,null,null,null,null,null,null,null,null,null,null,"",""]
["",null,null,null,null,null,null,null,null,null,null,null,null,null,null,null,null,"",null,null,null,null,null,null,null,null,null,null,null,null,"",null,null,null,null,null,null,null,null,null,null,null,null,"",""]
["",null,null,null,null,null,null,null,null,null,null,null,null,null,null,null,null,"",null,null,null,null,null,null,null,null,null,null,null,null,"",null,null,null,null,null,null,null,null,null,null,null,null,"",""]
["",null,null,null,null,null,null,null,null,null,null,null,null,null,null,null,null,"",null,null,null,null,null,null,null,null,null,null,null,null,"",null,null,null,null,null,null,null,null,null,null,null,null,"",""]
["",null,null,null,null,null,null,null,null,null,null,null,null,null,null,null,null,"",null,null,null,null,null,null,null,null,null,null,null,null,"",null,null,null,null,null,null,null,null,null,null,null,null,"",""]
["",null,null,null,null,null,null,null,null,null,null,null,null,null,null,null,null,"",null,null,null,null,null,null,null,null,null,null,null,null,"",null,null,null,null,null,null,null,null,null,null,null,null,"",""]
["",null,null,null,null,null,null,null,null,null,null,null,null,null,null,null,null,"",null,null,null,null,null,null,null,null,null,null,null,null,"",null,null,null,null,null,null,null,null,null,null,null,null,"",""]
["",null,null,null,null,null,null,null,null,null,null,null,null,null,null,null,null,"",null,null,null,null,null,null,null,null,null,null,null,null,"",null,null,null,null,null,null,null,null,null,null,null,null,"",""]
["",null,null,null,null,null,null,null,null,null,null,null,null,null,null,null,null,"",null,null,null,null,null,null,null,null,null,null,null,null,"",null,null,null,null,null,null,null,null,null,null,null,null,"",""]
["",null,null,null,null,null,null,null,null,null,null,null,null,null,null,null,null,"",null,null,null,null,null,null,null,null,null,null,null,null,"",null,null,null,null,null,null,null,null,null,null,null,null,"",""]
["",null,null,null,null,null,null,null,null,null,null,null,null,null,null,null,null,"",null,null,null,null,null,null,null,null,null,null,null,null,"",null,null,null,null,null,null,null,null,null,null,null,null,"",""]
["",null,null,null,null,null,null,null,null,null,null,null,null,null,null,null,null,"",null,null,null,null,null,null,null,null,null,null,null,null,"",null,null,null,null,null,null,null,null,null,null,null,null,"",""]
["",null,null,null,null,null,null,null,null,null,null,null,null,null,null,null,null,"",null,null,null,null,null,null,null,null,null,null,null,null,"",null,null,null,null,null,null,null,null,null,null,null,null,"",""]
["",null,null,null,null,null,null,null,null,null,null,null,null,null,null,null,null,"",null,null,null,null,null,null,null,null,null,null,null,null,"",null,null,null,null,null,null,null,null,null,null,null,null,"",""]
["",null,null,null,null,null,null,null,null,null,null,null,null,null,null,null,null,"",null,null,null,null,null,null,null,null,null,null,null,null,"",null,null,null,null,null,null,null,null,null,null,null,null,"",""]
["",null,null,null,null,null,null,null,null,null,null,null,null,null,null,null,null,"",null,null,null,null,null,null,null,null,null,null,null,null,"",null,null,null,null,null,null,null,null,null,null,null,null,"",""]
["",null,null,null,null,null,null,null,null,null,null,null,null,null,null,null,null,"",null,null,null,null,null,null,null,null,null,null,null,null,"",null,null,null,null,null,null,null,null,null,null,null,null,"",""]
["",null,null,null,null,null,null,null,null,null,null,null,null,null,null,null,null,"",null,null,null,null,null,null,null,null,null,null,null,null,"",null,null,null,null,null,null,null,null,null,null,null,null,"",""]
["",null,null,null,null,null,null,null,null,null,null,null,null,null,null,null,null,"",null,null,null,null,null,null,null,null,null,null,null,null,"",null,null,null,null,null,null,null,null,null,null,null,null,"",""]
["",null,null,null,null,null,null,null,null,null,null,null,null,null,null,null,null,"",null,null,null,null,null,null,null,null,null,null,null,null,"",null,null,null,null,null,null,null,null,null,null,null,null,"",""]
["",null,null,null,null,null,null,null,null,null,null,null,null,null,null,null,null,"",null,null,null,null,null,null,null,null,null,null,null,null,"",null,null,null,null,null,null,null,null,null,null,null,null,"",""]
["",null,null,null,null,null,null,null,null,null,null,null,null,null,null,null,null,"",null,null,null,null,null,null,null,null,null,null,null,null,"",null,null,null,null,null,null,null,null,null,null,null,null,"",""]
["",null,null,null,null,null,null,null,null,null,null,null,null,null,null,null,null,"",null,null,null,null,null,null,null,null,null,null,null,null,"",null,null,null,null,null,null,null,null,null,null,null,null,"",""]
["",null,null,null,null,null,null,null,null,null,null,null,null,null,null,null,null,"",null,null,null,null,null,null,null,null,null,null,null,null,"",null,null,null,null,null,null,null,null,null,null,null,null,"",""]
["",null,null,null,null,null,null,null,null,null,null,null,null,null,null,null,null,"",null,null,null,null,null,null,null,null,null,null,null,null,"",null,null,null,null,null,null,null,null,null,null,null,null,"",""]
["",null,null,null,null,null,null,null,null,null,null,null,null,null,null,null,null,"",null,null,null,null,null,null,null,null,null,null,null,null,"",null,null,null,null,null,null,null,null,null,null,null,null,"",""]
["",null,null,null,null,null,null,null,null,null,null,null,null,null,null,null,null,"",null,null,null,null,null,null,null,null,null,null,null,null,"",null,null,null,null,null,null,null,null,null,null,null,null,"",""]
["",null,null,null,null,null,null,null,null,null,null,null,null,null,null,null,null,"",null,null,null,null,null,null,null,null,null,null,null,null,"",null,null,null,null,null,null,null,null,null,null,null,null,"",""]
["",null,null,null,null,null,null,null,null,null,null,null,null,null,null,null,null,"",null,null,null,null,null,null,null,null,null,null,null,null,"",null,null,null,null,null,null,null,null,null,null,null,null,"",""]
["",null,null,null,null,null,null,null,null,null,null,null,null,null,null,null,null,"",null,null,null,null,null,null,null,null,null,null,null,null,"",null,null,null,null,null,null,null,null,null,null,null,null,"",""]
["",null,null,null,null,null,null,null,null,null,null,null,null,null,null,null,null,"",null,null,null,null,null,null,null,null,null,null,null,null,"",null,null,null,null,null,null,null,null,null,null,null,null,"",""]
["",null,null,null,null,null,null,null,null,null,null,null,null,null,null,null,null,"",null,null,null,null,null,null,null,null,null,null,null,null,"",null,null,null,null,null,null,null,null,null,null,null,null,"",""]
["",null,null,null,null,null,null,null,null,null,null,null,null,null,null,null,null,"",null,null,null,null,null,null,null,null,null,null,null,null,"",null,null,null,null,null,null,null,null,null,null,null,null,"",""]
["",null,null,null,null,null,null,null,null,null,null,null,null,null,null,null,null,"",null,null,null,null,null,null,null,null,null,null,null,null,"",null,null,null,null,null,null,null,null,null,null,null,null,"",""]
["",null,null,null,null,null,null,null,null,null,null,null,null,null,null,null,null,"",null,null,null,null,null,null,null,null,null,null,null,null,"",null,null,null,null,null,null,null,null,null,null,null,null,"",""]
["",null,null,null,null,null,null,null,null,null,null,null,null,null,null,null,null,"",null,null,null,null,null,null,null,null,null,null,null,null,"",null,null,null,null,null,null,null,null,null,null,null,null,"",""]
["",null,null,null,null,null,null,null,null,null,null,null,null,null,null,null,null,"",null,null,null,null,null,null,null,null,null,null,null,null,"",null,null,null,null,null,null,null,null,null,null,null,null,"",""]
["",null,null,null,null,null,null,null,null,null,null,null,null,null,null,null,null,"",null,null,null,null,null,null,null,null,null,null,null,null,"",null,null,null,null,null,null,null,null,null,null,null,null,"",""]
["",null,null,null,null,null,null,null,null,null,null,null,null,null,null,null,null,"",null,null,null,null,null,null,null,null,null,null,null,null,"",null,null,null,null,null,null,null,null,null,null,null,null,"",""]
["",null,null,null,null,null,null,null,null,null,null,null,null,null,null,null,null,"",null,null,null,null,null,null,null,null,null,null,null,null,"",null,null,null,null,null,null,null,null,null,null,null,null,"",""]
["",null,null,null,null,null,null,null,null,null,null,null,null,null,null,null,null,"",null,null,null,null,null,null,null,null,null,null,null,null,"",null,null,null,null,null,null,null,null,null,null,null,null,"",""]
["",null,null,null,null,null,null,null,null,null,null,null,null,null,null,null,null,"",null,null,null,null,null,null,null,null,null,null,null,null,"",null,null,null,null,null,null,null,null,null,null,null,null,"",""]
["",null,null,null,null,null,null,null,null,null,null,null,null,null,null,null,null,"",null,null,null,null,null,null,null,null,null,null,null,null,"",null,null,null,null,null,null,null,null,null,null,null,null,"",""]
["",null,null,null,null,null,null,null,null,null,null,null,null,null,null,null,null,"",null,null,null,null,null,null,null,null,null,null,null,null,"",null,null,null,null,null,null,null,null,null,null,null,null,"",""]
["",null,null,null,null,null,null,null,null,null,null,null,null,null,null,null,null,"",null,null,null,null,null,null,null,null,null,null,null,null,"",null,null,null,null,null,null,null,null,null,null,null,null,"",""]
["",null,null,null,null,null,null,null,null,null,null,null,null,null,null,null,null,"",null,null,null,null,null,null,null,null,null,null,null,null,"",null,null,null,null,null,null,null,null,null,null,null,null,"",""]
["",null,null,null,null,null,null,null,null,null,null,null,null,null,null,null,null,"",null,null,null,null,null,null,null,null,null,null,null,null,"",null,null,null,null,null,null,null,null,null,null,null,null,"",""]
["",null,null,null,null,null,null,null,null,null,null,null,null,null,null,null,null,"",null,null,null,null,null,null,null,null,null,null,null,null,"",null,null,null,null,null,null,null,null,null,null,null,null,"",""]
["",null,null,null,null,null,null,null,null,null,null,null,null,null,null,null,null,"",null,null,null,null,null,null,null,null,null,null,null,null,"",null,null,null,null,null,null,null,null,null,null,null,null,"",""]
["",null,null,null,null,null,null,null,null,null,null,null,null,null,null,null,null,"",null,null,null,null,null,null,null,null,null,null,null,null,"",null,null,null,null,null,null,null,null,null,null,null,null,"",""]
["",null,null,null,null,null,null,null,null,null,null,null,null,null,null,null,null,"",null,null,null,null,null,null,null,null,null,null,null,null,"",null,null,null,null,null,null,null,null,null,null,null,null,"",""]
["",null,null,null,null,null,null,null,null,null,null,null,null,null,null,null,null,"",null,null,null,null,null,null,null,null,null,null,null,null,"",null,null,null,null,null,null,null,null,null,null,null,null,"",""]

{"sheet":"итог","index":1,"n_rows":11,"n_cols":28,"rows_kept":11,"cut":false,"hidden":false,"merged":[[0,0,0,13],[0,14,0,27]]}
["Младшие",null,null,null,null,null,null,null,null,null,null,null,null,null,"Старшие"]
["1\n1 1 1","СКИТтеры\nСимферополь",22,8,8,6,{"$f":"COUNTIF(D$2:D$10, \">\" & D2) + 1","v":1},{"$f":"COUNTIF(E$2:E$10, \">\" & E2) + 1","v":1},{"$f":"COUNTIF(F$2:F$10, \">\" & F2) + 1","v":1},{"$f":"COUNTIF(D$2:D$10, \">=\" & D2)","v":1},{"$f":"COUNTIF(E$2:E$10, \">=\" & E2)","v":1},{"$f":"COUNTIF(F$2:F$10, \">=\" & F2)","v":1},{"$f":"SUM(G2:L2)/2","v":3},"22\n8 8 6","1\n1-3 1-2 2-6","Язь\nЯлта",20,9,7,4,{"$f":"COUNTIF(R$2:R$11, \">\" & R2) + 1","v":1},{"$f":"COUNTIF(S$2:S$11, \">\" & S2) + 1","v":1},{"$f":"COUNTIF(T$2:T$11, \">\" & T2) + 1","v":2},{"$f":"COUNTIF(R$2:R$11, \">=\" & R2)","v":3},{"$f":"COUNTIF(S$2:S$11, \">=\" & S2)","v":2},{"$f":"COUNTIF(T$2:T$11, \">=\" & T2)","v":6},{"$f":"SUM(U2:Z2)/2","v":7.5},"20\n9 7 4"]
["2\n2 2 2-3","Ювентус\nЕвпатория",17,7,6,4,{"$f":"COUNTIF(D$2:D$10, \">\" & D3) + 1","v":2},{"$f":"COUNTIF(E$2:E$10, \">\" & E3) + 1","v":2},{"$f":"COUNTIF(F$2:F$10, \">\" & F3) + 1","v":2},{"$f":"COUNTIF(D$2:D$10, \">=\" & D3)","v":2},{"$f":"COUNTIF(E$2:E$10, \">=\" & E3)","v":2},{"$f":"COUNTIF(F$2:F$10, \">=\" & F3)","v":3},{"$f":"SUM(G3:L3)/2","v":6.5},"17\n7 6 4","2\n5-6 1-2 1","Интеграл\nЕвпатория",19,7,7,5,{"$f":"COUNTIF(R$2:R$11, \">\" & R3) + 1","v":5},{"$f":"COUNTIF(S$2:S$11, \">\" & S3) + 1","v":1},{"$f":"COUNTIF(T$2:T$11, \">\" & T3) + 1","v":1},{"$f":"COUNTIF(R$2:R$11, \">=\" & R3)","v":6},{"$f":"COUNTIF(S$2:S$11, \">=\" & S3)","v":2},{"$f":"COUNTIF(T$2:T$11, \">=\" & T3)","v":1},{"$f":"SUM(U3:Z3)/2","v":8},"19\n7 7 5"]
["3\n3 3-5 4-5","Алустон\nАлушта",14,6,5,3,{"$f":"COUNTIF(D$2:D$10, \">\" & D4) + 1","v":3},{"$f":"COUNTIF(E$2:E$10, \">\" & E4) + 1","v":3},{"$f":"COUNTIF(F$2:F$10, \">\" & F4) + 1","v":4},{"$f":"COUNTIF(D$2:D$10, \">=\" & D4)","v":3},{"$f":"COUNTIF(E$2:E$10, \">=\" & E4)","v":5},{"$f":"COUNTIF(F$2:F$10, \">=\" & F4)","v":5},{"$f":"SUM(G4:L4)/2","v":11.5},"14\n6 5 3","3\n1-3 3-4 2-6","Apple\nБахчисарай",18,9,5,4,{"$f":"COUNTIF(R$2:R$11, \">\" & R4) + 1","v":1},{"$f":"COUNTIF(S$2:S$11, \">\" & S4) + 1","v":3},{"$f":"COUNTIF(T$2:T$11, \">\" & T4) + 1","v":2},{"$f":"COUNTIF(R$2:R$11, \">=\" & R4)","v":3},{"$f":"COUNTIF(S$2:S$11, \">=\" & S4)","v":4},{"$f":"COUNTIF(T$2:T$11, \">=\" & T4)","v":6},{"$f":"SUM(U4:Z4)/2","v":9.5},"18\n9 5 4"]
["4\n4-5 3-5 6-7","Мозг\nБахчисарай",12,5,5,2,{"$f":"COUNTIF(D$2:D$10, \">\" & D5) + 1","v":4},{"$f":"COUNTIF(E$2:E$10, \">\" & E5) + 1","v":3},{"$f":"COUNTIF(F$2:F$10, \">\" & F5) + 1","v":6},{"$f":"COUNTIF(D$2:D$10, \">=\" & D5)","v":5},{"$f":"COUNTIF(E$2:E$10, \">=\" & E5)","v":5},{"$f":"COUNTIF(F$2:F$10, \">=\" & F5)","v":7},{"$f":"SUM(G5:L5)/2","v":15},"12\n5 5 2","4\n1-3 3-4 2-6","Лидер\nЕвпатория",18,9,5,4,{"$f":"COUNTIF(R$2:R$11, \">\" & R5) + 1","v":1},{"$f":"COUNTIF(S$2:S$11, \">\" & S5) + 1","v":3},{"$f":"COUNTIF(T$2:T$11, \">\" & T5) + 1","v":2},{"$f":"COUNTIF(R$2:R$11, \">=\" & R5)","v":3},{"$f":"COUNTIF(S$2:S$11, \">=\" & S5)","v":4},{"$f":"COUNTIF(T$2:T$11, \">=\" & T5)","v":6},{"$f":"SUM(U5:Z5)/2","v":9.5},"18\n9 5 4"]
["5\n4-5 6-7 4-5","Достлукъ\nЕвпатория",12,5,4,3,{"$f":"COUNTIF(D$2:D$10, \">\" & D6) + 1","v":4},{"$f":"COUNTIF(E$2:E$10, \">\" & E6) + 1","v":6},{"$f":"COUNTIF(F$2:F$10, \">\" & F6) + 1","v":4},{"$f":"COUNTIF(D$2:D$10, \">=\" & D6)","v":5},{"$f":"COUNTIF(E$2:E$10, \">=\" & E6)","v":7},{"$f":"COUNTIF(F$2:F$10, \">=\" & F6)","v":5},{"$f":"SUM(G6:L6)/2","v":15.5},"12\n5 4 3","5\n5-6 9-10 2-6","Сейтлер\nНижнегорский р-н",13,7,2,4,{"$f":"COUNTIF(R$2:R$11, \">\" & R6) + 1","v":5},{"$f":"COUNTIF(S$2:S$11, \">\" & S6) + 1","v":9},{"$f":"COUNTIF(T$2:T$11, \">\" & T6) + 1","v":2},{"$f":"COUNTIF(R$2:R$11, \">=\" & R6)","v":6},{"$f":"COUNTIF(S$2:S$11, \">=\" & S6)","v":10},{"$f":"COUNTIF(T$2:T$11, \">=\" & T6)","v":6},{"$f":"SUM(U6:Z6)/2","v":19},"13\n7 2 4"]
["6\n8-9 3-5 2-3","Грэйсы\nСимферополь",11,2,5,4,{"$f":"COUNTIF(D$2:D$10, \">\" & D7) + 1","v":8},{"$f":"COUNTIF(E$2:E$10, \">\" & E7) + 1","v":3},{"$f":"COUNTIF(F$2:F$10, \">\" & F7) + 1","v":2},{"$f":"COUNTIF(D$2:D$10, \">=\" & D7)","v":9},{"$f":"COUNTIF(E$2:E$10, \">=\" & E7)","v":5},{"$f":"COUNTIF(F$2:F$10, \">=\" & F7)","v":3},{"$f":"SUM(G7:L7)/2","v":15},"11\n2 5 4","6\n9-10 5-7 2-6","Исключение из правил\nСимферополь",12,4,4,4,{"$f":"COUNTIF(R$2:R$11, \">\" & R7) + 1","v":9},{"$f":"COUNTIF(S$2:S$11, \">\" & S7) + 1","v":5},{"$f":"COUNTIF(T$2:T$11, \">\" & T7) + 1","v":2},{"$f":"COUNTIF(R$2:R$11, \">=\" & R7)","v":10},{"$f":"COUNTIF(S$2:S$11, \">=\" & S7)","v":7},{"$f":"COUNTIF(T$2:T$11, \">=\" & T7)","v":6},{"$f":"SUM(U7:Z7)/2","v":19.5},"12\n4 4 4"]
["7\n6 9 6-7","Интеллект\nБахчисарай",8,4,2,2,{"$f":"COUNTIF(D$2:D$10, \">\" & D8) + 1","v":6},{"$f":"COUNTIF(E$2:E$10, \">\" & E8) + 1","v":9},{"$f":"COUNTIF(F$2:F$10, \">\" & F8) + 1","v":6},{"$f":"COUNTIF(D$2:D$10, \">=\" & D8)","v":6},{"$f":"COUNTIF(E$2:E$10, \">=\" & E8)","v":9},{"$f":"COUNTIF(F$2:F$10, \">=\" & F8)","v":7},{"$f":"SUM(G8:L8)/2","v":21.5},"8\n4 2 2","7\n4 5-7 10","Дети 90-х\nЕвпатория",12,8,4,0,{"$f":"COUNTIF(R$2:R$11, \">\" & R8) + 1","v":4},{"$f":"COUNTIF(S$2:S$11, \">\" & S8) + 1","v":5},{"$f":"COUNTIF(T$2:T$11, \">\" & T8) + 1","v":10},{"$f":"COUNTIF(R$2:R$11, \">=\" & R8)","v":4},{"$f":"COUNTIF(S$2:S$11, \">=\" & S8)","v":7},{"$f":"COUNTIF(T$2:T$11, \">=\" & T8)","v":10},{"$f":"SUM(U8:Z8)/2","v":20},"12\n8 4 0"]
["8\n7 6-7 8-9","Оптимисты\nСимферополь",7,3,4,0,{"$f":"COUNTIF(D$2:D$10, \">\" & D9) + 1","v":7},{"$f":"COUNTIF(E$2:E$10, \">\" & E9) + 1","v":6},{"$f":"COUNTIF(F$2:F$10, \">\" & F9) + 1","v":8},{"$f":"COUNTIF(D$2:D$10, \">=\" & D9)","v":7},{"$f":"COUNTIF(E$2:E$10, \">=\" & E9)","v":7},{"$f":"COUNTIF(F$2:F$10, \">=\" & F9)","v":9},{"$f":"SUM(G9:L9)/2","v":22},"7\n3 4 0","8\n7-8 5-7 7-8","ДЭМС\nДонское",12,5,4,3,{"$f":"COUNTIF(R$2:R$11, \">\" & R9) + 1","v":7},{"$f":"COUNTIF(S$2:S$11, \">\" & S9) + 1","v":5},{"$f":"COUNTIF(T$2:T$11, \">\" & T9) + 1","v":7},{"$f":"COUNTIF(R$2:R$11, \">=\" & R9)","v":8},{"$f":"COUNTIF(S$2:S$11, \">=\" & S9)","v":7},{"$f":"COUNTIF(T$2:T$11, \">=\" & T9)","v":8},{"$f":"SUM(U9:Z9)/2","v":21},"12\n5 4 3"]
["9\n8-9 8 8-9","Орион\nУкромное",5,2,3,0,{"$f":"COUNTIF(D$2:D$10, \">\" & D10) + 1","v":8},{"$f":"COUNTIF(E$2:E$10, \">\" & E10) + 1","v":8},{"$f":"COUNTIF(F$2:F$10, \">\" & F10) + 1","v":8},{"$f":"COUNTIF(D$2:D$10, \">=\" & D10)","v":9},{"$f":"COUNTIF(E$2:E$10, \">=\" & E10)","v":8},{"$f":"COUNTIF(F$2:F$10, \">=\" & F10)","v":9},{"$f":"SUM(G10:L10)/2","v":25},"5\n2 3 0","9\n7-8 9-10 7-8","Золотой запас\nОктябрьское",10,5,2,3,{"$f":"COUNTIF(R$2:R$11, \">\" & R10) + 1","v":7},{"$f":"COUNTIF(S$2:S$11, \">\" & S10) + 1","v":9},{"$f":"COUNTIF(T$2:T$11, \">\" & T10) + 1","v":7},{"$f":"COUNTIF(R$2:R$11, \">=\" & R10)","v":8},{"$f":"COUNTIF(S$2:S$11, \">=\" & S10)","v":10},{"$f":"COUNTIF(T$2:T$11, \">=\" & T10)","v":8},{"$f":"SUM(U10:Z10)/2","v":24.5},"10\n5 2 3"]
[null,null,null,null,null,null,null,null,null,null,null,null,null,null,"10\n9-10 8 9","Знатоки\nСимферополь",8,4,3,1,{"$f":"COUNTIF(R$2:R$11, \">\" & R11) + 1","v":9},{"$f":"COUNTIF(S$2:S$11, \">\" & S11) + 1","v":8},{"$f":"COUNTIF(T$2:T$11, \">\" & T11) + 1","v":9},{"$f":"COUNTIF(R$2:R$11, \">=\" & R11)","v":10},{"$f":"COUNTIF(S$2:S$11, \">=\" & S11)","v":8},{"$f":"COUNTIF(T$2:T$11, \">=\" & T11)","v":9},{"$f":"SUM(U11:Z11)/2","v":26.5},"8\n4 3 1"]